bitfinex-derivatives/quotes_BTCF0:USTF0_20250411
["timestamp","ask_amount","ask_price","bid_price","bid_amount"]
[1744330191895,0.0651,79609.0,79608.0,0.16744901]
[1744330192095,0.0651,79609.0,79608.0,0.19804901]
[1744330192299,0.1907993,79609.0,79608.0,0.13514901]
[1744330193000,0.0651,79609.0,79608.0,0.13514901]
[1744330193194,0.3608,79622.0,79615.0,0.0628447]
[1744330193390,0.3608,79622.0,79621.0,0.1256804]
[1744330193590,0.01163778,79632.0,79625.0,0.1256741]
[1744330193794,0.1256651,79631.0,79625.0,0.4864741]
[1744330193994,0.0628332,79630.0,79625.0,0.4864741]
[1744330194195,0.1256654,79631.0,79625.0,0.4864741]
[1744330194385,0.1256684,79629.0,79625.0,0.5787141]
[1744330194590,0.1870701,79628.0,79625.0,0.5787141]
[1744330195003,0.0632363,79626.0,79622.0,0.0628393]
[1744330195200,0.0632363,79626.0,79623.0,0.1256762]
[1744330195201,0.1256772,79624.0,79623.0,0.1256762]
[1744330195504,0.0309,79625.0,79624.0,0.1256756]
[1744330195690,0.0004,79626.0,79623.0,0.3608]
[1744330195691,0.0004,79626.0,79623.0,0.4225]
[1744330195891,0.0309,79631.0,79630.0,0.1256662]
[1744330196099,0.0305,79640.0,79639.0,0.125652]
[1744330197097,0.1561504,79640.0,79639.0,0.125652]
[1744330198206,0.0305,79640.0,79639.0,0.125652]
[1744330199105,0.5489504,79640.0,79639.0,0.125652]
[1744330199292,0.5489504,79640.0,79630.0,1.9236329]
[1744330199293,0.2513071,79639.0,79630.0,1.9236329]
[1744330199600,0.1256835,79619.0,79618.0,0.12587156]
[1744330199899,0.1256835,79619.0,79618.0,0.48667156]
[1744330200103,0.1256835,79619.0,79618.0,1.65617156]
[1744330200299,0.0628237,79642.0,79618.0,1.53048846]
[1744330200505,0.0319,79632.0,79631.0,0.125663]
[1744330200715,0.1575665,79632.0,79631.0,0.125663]
[1744330200906,0.1904665,79632.0,79631.0,0.125663]
[1744330201508,0.1256677,79630.0,79629.0,0.1256667]
[1744330202007,0.1905677,79630.0,79629.0,0.1256667]
[1744330202203,0.062826,79639.0,79636.0,0.1884811]
[1744330202409,0.1256535,79638.0,79637.0,0.0308]
[1744330202705,0.1256535,79638.0,79637.0,0.1564535]
[1744330203007,0.1886535,79638.0,79637.0,0.5172535]
[1744330203204,0.1886535,79638.0,79637.0,0.5496535]
[1744330206606,0.063,79638.0,79637.0,0.5496535]
[1744330208003,0.1886535,79638.0,79637.0,0.5496535]
[1744330208309,0.3929,79645.0,79644.0,0.1256441]
[1744330208310,0.0321,79645.0,79644.0,0.1256441]
[1744330208494,0.1256409,79646.0,79645.0,0.1256409]
[1744330208698,0.0307,79647.0,79646.0,0.1256409]
[1744330208904,0.0004,79650.0,79649.0,0.1256362]
[1744330209307,0.0004,79650.0,79649.0,0.1558362]
[1744330209898,0.2190235,79664.0,79663.0,0.1256141]
[1744330210414,0.34934239,79673.0,79672.0,0.1255999]
[1744330212603,0.25504219,79673.0,79672.0,0.1255999]
[1744330212803,0.22374219,79673.0,79672.0,0.13523084]
[1744330213004,0.22374219,79673.0,79672.0,0.19783084]
[1744330213309,0.125594,79676.0,79673.0,0.1255983]
[1744330213501,0.125594,79676.0,79673.0,0.1897983]
[1744330214008,0.032,79688.0,79687.0,0.1255763]
[1744330214207,0.032,79688.0,79687.0,0.4863763]
[1744330214396,0.1255732,79689.0,79687.0,0.22256538]
[1744330214599,0.0313,79690.0,79689.0,0.1255731]
[1744330215011,0.0313,79690.0,79689.0,0.1558731]
[1744330215400,0.1568715,79690.0,79689.0,0.1558731]
[1744330215601,0.3612,79698.0,79690.0,0.1255715]
[1744330215809,0.0627827,79694.0,79690.0,0.1889715]
[1744330216508,0.34931219,79691.0,79690.0,1.6889715]
[1744330216711,0.12557,79691.0,79690.0,1.6889715]
[1744330217216,0.0004,79698.0,79697.0,0.1255605]
[1744330217505,0.1255359,79713.0,79706.0,0.1255463]
[1744330217709,0.1255361,79713.0,79706.0,0.1255463]
[1744330217912,0.1277631,79719.0,79706.0,0.1255463]
[1744330218108,0.1277631,79719.0,79714.0,0.2510612]
[1744330218109,0.0627662,79715.0,79714.0,0.2510612]
[1744330218310,0.1255448,79707.0,79706.0,1.5]
[1744330218505,0.1255448,79707.0,79706.0,1.5622]
[1744330218707,0.1255448,79707.0,79706.0,1.6877463]
[1744330218905,0.0303,79714.0,79713.0,0.1255353]
[1744330219603,0.1558337,79714.0,79713.0,0.1255353]
[1744330220114,0.32492153,79720.0,79717.0,0.125529]
[1744330220413,0.4863279,79718.0,79717.0,0.13513544]
[1744330221108,0.4863279,79718.0,79717.0,0.16683544]
[1744330221509,0.1255274,79718.0,79717.0,0.16683544]
[1744330221712,0.38768403,79720.0,79719.0,0.1255259]
[1744330222007,0.11180653,79720.0,79719.0,0.1255259]
[1744330222408,0.23733083,79720.0,79719.0,0.1255259]
[1744330223409,0.11180653,79720.0,79719.0,0.1255259]
[1744330223607,0.23733083,79720.0,79719.0,0.1255259]
[1744330224008,0.23733083,79720.0,79717.0,0.10407034]
[1744330224009,0.1255274,79718.0,79717.0,0.00960644]
[1744330224201,0.1255337,79714.0,79713.0,0.0328]
[1744330224406,0.1255448,79707.0,79706.0,1.50927255]
[1744330224612,0.1255448,79707.0,79706.0,0.00927255]
[1744330224807,0.3608,79708.0,79705.0,0.125547]
[1744330224808,0.1255463,79706.0,79705.0,0.125547]
[1744330225012,0.1255511,79704.0,79703.0,0.1255503]
[1744330225313,0.1255511,79704.0,79703.0,1.6255503]
[1744330225616,0.1255511,79704.0,79703.0,0.1255503]
[1744330225805,0.3608,79708.0,79703.0,0.04210833]
[1744330225806,0.0328,79707.0,79703.0,0.04210833]
[1744330226005,0.1255432,79708.0,79707.0,0.1255448]
[1744330226509,0.0627688,79712.0,79711.0,0.1255369]
[1744330226815,0.0941688,79712.0,79711.0,0.1255369]
[1744330227209,0.4549688,79712.0,79711.0,0.1255369]
[1744330227615,0.1255495,79704.0,79695.0,0.3608]
[1744330227816,0.1255558,79701.0,79700.0,0.1883298]
[1744330228312,0.1563558,79701.0,79700.0,0.1883298]
[1744330229413,0.1563558,79701.0,79694.0,0.0627824]
[1744330229414,0.3916,79701.0,79685.0,0.3608]
[1744330229715,0.0617,79700.0,79681.0,0.031]
[1744330230010,0.0617,79700.0,79673.0,0.3608]
[1744330230011,0.1255936,79676.0,79675.0,0.00990306]
[1744330230206,0.1255936,79676.0,79675.0,1.50050204]
[1744330230406,0.1255936,79676.0,79675.0,1.62609724]
[1744330230818,0.1255936,79676.0,79675.0,0.12609724]
[1744330231616,0.1255936,79676.0,79675.0,0.13543516]
[1744330231814,0.1255936,79676.0,79675.0,0.00983996]
[1744330232113,0.1560936,79676.0,79675.0,0.00983996]
[1744330232309,0.1560936,79676.0,79675.0,0.00050204]
[1744330232511,0.1560936,79676.0,79675.0,0.12609724]
[1744330232708,0.0316,79680.0,79675.0,0.12609724]
[1744330232709,0.16588855,79700.0,79680.0,0.062793]
[1744330232912,0.48656955,79683.0,79682.0,0.1255842]
[1744330233216,0.00018695,79683.0,79682.0,0.1255842]
[1744330233517,0.00018695,79683.0,79682.0,0.1917842]
[1744330238122,0.1883515,79697.0,79696.0,0.1255553]
[1744330238312,0.2511345,79697.0,79696.0,0.1255553]
[1744330238614,0.062784,79693.0,79686.0,0.0627887]
[1744330238816,0.1883729,79685.0,79684.0,0.0627895]
[1744330239411,0.1883729,79685.0,79683.0,1.5]
[1744330239412,0.125581,79684.0,79683.0,1.5]
[1744330239813,0.062793,79681.0,79677.0,0.03338821]
[1744330240020,0.1255905,79678.0,79677.0,0.00018821]
[1744330240319,0.4863905,79678.0,79677.0,0.00018821]
[1744330241630,0.4863905,79678.0,79677.0,0.12578021]
[1744330241813,0.11180653,79687.0,79680.0,0.0627934]
[1744330242012,0.11180653,79687.0,79686.0,0.4863779]
[1744330242921,0.11180653,79687.0,79686.0,0.5167779]
[1744330243823,0.11180653,79687.0,79686.0,2.0167779]
[1744330244814,0.18634422,79700.0,79699.0,0.1255574]
[1744330245322,0.31190002,79700.0,79699.0,0.1255574]
[1744330245520,0.18634422,79700.0,79699.0,0.1255574]
[1744330245714,0.18634422,79700.0,79699.0,0.1885574]
[1744330245921,0.1498466,79707.0,79705.0,0.0627738]
[1744330246120,0.2753914,79707.0,79706.0,0.1885463]
[1744330246824,0.1498466,79707.0,79706.0,0.2815463]
[1744330247029,0.22461033,79721.0,79720.0,0.1255243]
[1744330247326,0.22461033,79721.0,79720.0,0.14221417]
[1744330247719,0.22461033,79721.0,79720.0,0.17451417]
[1744330248428,0.22461033,79721.0,79720.0,0.1578243]
[1744330248627,0.095545,79742.0,79729.0,0.0627549]
[1744330248822,0.1567007,79735.0,79734.0,0.1255023]
[1744330249018,0.1875007,79735.0,79734.0,0.1255023]
[1744330249821,0.1875007,79735.0,79734.0,0.13514904]
[1744330252232,0.1875007,79735.0,79727.0,0.0332]
[1744330252233,0.1255148,79726.0,79725.0,0.12570461]
[1744330253033,0.1897148,79726.0,79725.0,0.12570461]
[1744330253524,0.0642,79726.0,79725.0,0.12570461]
[1744330253936,0.1897148,79726.0,79725.0,0.12570461]
[1744330256243,0.1897148,79726.0,79725.0,0.13493619]
[1744330258945,0.0642,79726.0,79725.0,0.13493619]
[1744330259152,0.4235524,79733.0,79732.0,0.1255054]
[1744330259551,0.1882587,79732.0,79731.0,0.125507]
[1744330259847,0.2501587,79732.0,79731.0,0.125507]
[1744330260049,0.1882713,79728.0,79727.0,0.125513]
[1744330260443,0.2501713,79728.0,79727.0,0.125513]
[1744330260643,0.1246565,79728.0,79727.0,0.125513]
[1744330261149,0.0619,79728.0,79727.0,0.157213]
[1744330261449,0.1874117,79728.0,79727.0,0.187313]
[1744330261950,0.1874117,79728.0,79727.0,0.157213]
[1744330264352,0.1874117,79728.0,79727.0,0.125513]
[1744330265250,0.1255148,79726.0,79725.0,0.00941979]
[1744330265451,0.1255148,79726.0,79725.0,0.13493619]
[1744330266450,0.25017,79728.0,79727.0,0.1255133]
[1744330270759,0.0303,79728.0,79727.0,0.1255133]
[1744330270950,0.1558117,79728.0,79727.0,0.1255133]
[1744330271150,0.1558117,79728.0,79727.0,0.1877133]
[1744330271459,0.1558117,79728.0,79727.0,0.1574133]
[1744330271759,0.1558117,79728.0,79727.0,0.1255133]
[1744330272755,0.1255148,79726.0,79725.0,0.00941979]
[1744330273455,0.1560148,79726.0,79725.0,0.00941979]
[1744330273654,0.1560148,79726.0,79725.0,0.13493619]
[1744330273862,0.5168148,79726.0,79725.0,0.00018821]
[1744330274258,0.5468148,79726.0,79725.0,0.00018821]
[1744330275463,0.5468148,79726.0,79725.0,0.13491391]
[1744330275464,0.0305,79726.0,79725.0,0.13491391]
[1744330275762,0.3608,79739.0,79725.0,0.13491391]
[1744330275763,0.1882511,79738.0,79737.0,0.125496]
[1744330275966,0.2493511,79738.0,79737.0,0.125496]
[1744330277160,0.2493511,79738.0,79736.0,0.0315]
[1744330277161,0.1254975,79737.0,79736.0,0.0315]
[1744330277462,0.1254975,79737.0,79736.0,0.00952454]
[1744330277763,0.1254975,79737.0,79730.0,0.1255077]
[1744330277764,0.125507,79731.0,79730.0,0.1255077]
[1744330277958,0.1255133,79728.0,79727.0,0.1882691]
[1744330278157,0.1255133,79728.0,79727.0,0.19784166]
[1744330278363,0.1889133,79728.0,79727.0,0.19784166]
[1744330279265,0.1889133,79728.0,79727.0,0.22934166]
[1744330280467,0.1255075,79731.0,79730.0,0.1255086]
[1744330280760,0.34598635,79733.0,79732.0,0.1255054]
[1744330280962,5e-08,79733.0,79732.0,0.4863054]
[1744330281260,0.0324,79752.0,79745.0,0.1254849]
[1744330281464,0.0627389,79750.0,79745.0,0.1254849]
[1744330281664,0.0627389,79750.0,79745.0,1.6254849]
[1744330281859,0.1254787,79749.0,79745.0,1.6254849]
[1744330282062,0.1254787,79749.0,79745.0,1.6557849]
[1744330282457,0.1258834,79746.0,79745.0,1.6557849]
[1744330282666,0.1258834,79746.0,79745.0,1.5]
[1744330283063,0.1258834,79746.0,79741.0,0.3608]
[1744330283064,0.1254897,79742.0,79741.0,0.3608]
[1744330283765,0.1254897,79742.0,79741.0,0.4862912]
[1744330286255,0.1254897,79742.0,79741.0,0.3608]
[1744330286461,0.125496,79738.0,79737.0,0.2248766]
[1744330288560,0.125496,79738.0,79737.0,0.3503741]
[1744330288869,0.125496,79738.0,79737.0,0.2248766]
[1744330289764,0.0616,79741.0,79737.0,0.2248766]
[1744330289956,0.062743,79745.0,79744.0,0.1254865]
[1744330290661,0.0004,79746.0,79745.0,0.1254849]
[1744330290869,0.4862582,79762.0,79761.0,0.1254598]
[1744330292168,0.4862582,79762.0,79761.0,0.1561598]
[1744330292357,0.1254582,79762.0,79761.0,0.5169598]
[1744330292562,0.0627252,79767.0,79763.0,0.0627282]
[1744330292767,0.0627252,79767.0,79766.0,0.1254519]
[1744330293867,0.1254535,79765.0,79764.0,0.032]
[1744330295066,0.1254535,79765.0,79764.0,0.1574551]
[1744330295371,0.1254535,79765.0,79764.0,0.032]
[1744330295571,0.1254535,79765.0,79764.0,0.1574551]
[1744330298465,0.1881765,79767.0,79766.0,0.1254519]
[1744330298680,0.1258456,79770.0,79769.0,0.1254472]
[1744330299262,0.1258456,79770.0,79766.0,0.1254518]
[1744330299263,0.1254519,79767.0,79766.0,0.1254518]
[1744330299561,0.0627282,79764.0,79758.0,0.09052]
[1744330299761,0.1881934,79761.0,79760.0,0.1254613]
[1744330299960,0.0307,79763.0,79762.0,0.1254582]
[1744330300161,0.1561566,79763.0,79762.0,0.1254582]
[1744330300565,0.0627324,79758.0,79741.0,0.0627451]
[1744330300768,0.4862692,79755.0,79754.0,0.12565888]
[1744330300968,0.4862692,79755.0,79754.0,0.00018808]
[1744330304094,0.1255023,79734.0,79733.0,0.188252]
[1744330304276,0.1255023,79734.0,79733.0,0.2510025]
[1744330304572,0.1255023,79734.0,79733.0,0.3137543]
[1744330304766,0.0627473,79739.0,79733.0,0.0627505]
[1744330304975,0.1254872,79749.0,79748.0,0.1882111]
[1744330305274,0.1882289,79749.0,79748.0,0.0627381]
[1744330305474,0.0627431,79745.0,79742.0,0.3608]
[1744330305779,0.1254881,79743.0,79742.0,0.3608]
[1744330305978,0.1254881,79743.0,79742.0,0.4862897]
[1744330306181,0.1254881,79743.0,79742.0,0.3608]
[1744330306972,0.1254928,79740.0,79739.0,0.033]
[1744330307173,0.4862928,79740.0,79739.0,0.1584944]
[1744330307368,0.1255007,79735.0,79734.0,1.5305]
[1744330307570,0.1255007,79735.0,79734.0,1.6560023]
[1744330307772,0.1255007,79735.0,79734.0,1.5305]
[1744330307973,0.1255007,79735.0,79734.0,0.1560023]
[1744330308782,0.1255007,79735.0,79734.0,0.1881023]
[1744330309179,0.0627426,79745.0,79734.0,0.4234]
[1744330309378,0.0627438,79744.0,79735.0,0.23061337]
[1744330309581,0.125492,79744.0,79743.0,0.0627432]
[1744330311877,0.125492,79744.0,79743.0,0.1270432]
[1744330315181,0.125492,79744.0,79735.0,0.26101337]
[1744330315182,0.0331,79744.0,79735.0,0.23061337]
[1744330315387,0.0331,79744.0,79730.0,0.15386647]
[1744330315388,0.1255007,79735.0,79730.0,0.15386647]
[1744330315588,0.125507,79731.0,79730.0,0.15386647]
[1744330316195,0.0627526,79733.0,79729.0,0.1556098]
[1744330316196,0.1255086,79730.0,79729.0,0.1556098]
[1744330316491,0.1569086,79730.0,79729.0,0.1556098]
[1744330317282,0.1255086,79730.0,79729.0,0.1556098]
[1744330318303,0.0627516,79734.0,79729.0,0.0301]
[1744330318510,0.12568544,79738.0,79737.0,0.1254975]
[1744330318910,0.3608,79757.0,79747.0,0.0627392]
[1744330318911,0.1254841,79748.0,79747.0,0.0627392]
[1744330319210,0.2186244,79748.0,79747.0,0.1882147]
[1744330319704,0.1254834,79746.0,79745.0,0.0318]
[1744330319899,0.1254944,79739.0,79738.0,0.27935957]
[1744330320097,0.1254944,79739.0,79738.0,0.4862931]
[1744330320300,0.1255007,79735.0,79734.0,1.6255023]
[1744330320906,0.1255101,79729.0,79727.0,0.00957256]
[1744330321695,0.1899101,79729.0,79727.0,0.00957256]
[1744330322804,0.1899101,79729.0,79719.0,0.0318]
[1744330322805,0.1255353,79713.0,79700.0,0.3608]
[1744330323001,0.1255353,79713.0,79700.0,0.51466647]
[1744330323204,0.1255353,79713.0,79710.0,0.1255392]
[1744330323408,0.0319,79714.0,79713.0,0.1255353]
[1744330323604,0.1255154,79726.0,79725.0,0.1255148]
[1744330323806,0.0627616,79722.0,79721.0,0.125519]
[1744330324916,0.0947616,79722.0,79721.0,0.125519]
[1744330327019,0.1255259,79719.0,79718.0,0.00018808]
[1744330328118,0.0627596,79724.0,79718.0,0.00018808]
[1744330328119,0.00018808,79733.0,79732.0,0.1255054]
[1744330328419,0.12569188,79733.0,79732.0,0.1255054]
[1744330328916,0.1255054,79732.0,79731.0,0.0306]
[1744330329118,0.1885054,79732.0,79731.0,0.0306]
[1744330329312,0.063,79732.0,79720.0,0.23095252]
[1744330329518,0.1882831,79723.0,79722.0,0.1255211]
[1744330329711,0.1255211,79722.0,79721.0,0.1563227]
[1744330330017,0.1885211,79722.0,79721.0,1.6563227]
[1744330330712,0.1885211,79722.0,79721.0,1.5308]
[1744330331620,0.1885211,79722.0,79721.0,0.0308]
[1744330332722,0.1885211,79722.0,79721.0,0.1563227]
[1744330333315,0.1572211,79722.0,79721.0,0.1563227]
[1744330333521,0.1882815,79723.0,79722.0,0.1255211]
[1744330333713,0.1882815,79723.0,79722.0,0.1886211]
[1744330333914,0.1255176,79725.0,79724.0,0.1255164]
[1744330334122,0.0627578,79726.0,79725.0,0.1255164]
[1744330334321,0.0627578,79726.0,79725.0,0.1886164]
[1744330334615,0.0627578,79726.0,79725.0,0.032]
[1744330334818,0.1255227,79721.0,79720.0,0.3932]
[1744330335118,0.1255227,79721.0,79705.0,0.4235739]
[1744330335119,0.1255259,79719.0,79705.0,0.4235739]
[1744330335421,0.1255259,79719.0,79713.0,0.1255349]
[1744330335422,0.4863259,79719.0,79713.0,0.1255349]
[1744330335622,0.4863259,79719.0,79705.0,0.0627734]
[1744330335819,0.5182259,79719.0,79711.0,0.1255379]
[1744330336018,0.5182259,79719.0,79712.0,0.1255363]
[1744330336922,0.5182259,79719.0,79713.0,0.1255352]
[1744330337525,0.5182259,79719.0,79713.0,0.0627675]
[1744330337723,0.5182259,79719.0,79715.0,0.1255318]
[1744330337920,0.1882879,79721.0,79720.0,0.1255243]
[1744330338522,0.1882879,79721.0,79720.0,0.1890243]
[1744330343929,0.0627556,79729.0,79728.0,0.1255101]
[1744330346128,0.0627556,79729.0,79726.0,0.0627572]
[1744330346129,0.14987544,79730.0,79729.0,0.1255101]
[1744330346539,0.36098808,79733.0,79731.0,0.1255054]
[1744330346540,0.0627527,79732.0,79731.0,0.1255054]
[1744330349325,0.0627527,79732.0,79729.0,0.0627548]
[1744330349326,0.00018808,79733.0,79732.0,0.1255054]
[1744330349530,0.12569188,79733.0,79732.0,0.1255054]
[1744330350131,0.00018808,79733.0,79732.0,0.1255054]
[1744330350533,0.12569188,79733.0,79732.0,0.1255054]
[1744330351240,0.00018808,79733.0,79732.0,0.1255054]
[1744330354332,8e-08,79733.0,79732.0,0.1255054]
[1744330354533,8e-08,79733.0,79732.0,0.3755054]
[1744330356429,8e-08,79733.0,79732.0,0.2182254]
[1744330357532,8e-08,79733.0,79732.0,0.4682254]
[1744330358136,8e-08,79733.0,79732.0,0.1255054]
[1744330358439,8e-08,79733.0,79732.0,0.2182254]
[1744330359032,8e-08,79733.0,79732.0,0.4682254]
[1744330359636,8e-08,79733.0,79732.0,0.2182254]
[1744330359838,8e-08,79733.0,79732.0,0.2489254]
[1744330360231,8e-08,79733.0,79732.0,0.1562054]
[1744330360438,8e-08,79733.0,79732.0,0.2489254]
[1744330364033,8e-08,79733.0,79732.0,1.7489254]
[1744330365631,8e-08,79733.0,79732.0,2.1658254]
[1744330368345,0.0004,79746.0,79745.0,0.1254849]
[1744330368545,0.0004,79746.0,79745.0,0.5763249]
[1744330369246,0.0635,79755.0,79754.0,0.1254708]
[1744330369936,0.0635,79755.0,79754.0,1.6254708]
[1744330375032,0.0635,79755.0,79754.0,1.69877199]
[1744330375238,0.03,79760.0,79759.0,0.1254629]
[1744330376041,0.03,79760.0,79759.0,0.1892629]
[1744330378549,0.1554613,79760.0,79759.0,0.1254629]
[1744330378845,0.03,79760.0,79759.0,0.1254629]
[1744330379447,0.0949,79760.0,79759.0,0.1254629]
[1744330380746,0.2203613,79760.0,79759.0,0.1254629]
[1744330381340,0.1254692,79755.0,79754.0,0.00950119]
[1744330381546,0.1882042,79755.0,79754.0,0.1254708]
[1744330382452,0.283098,79760.0,79759.0,0.1254629]
[1744330382745,0.092731,79760.0,79759.0,0.1254629]
[1744330383352,0.092731,79760.0,79756.0,0.0627335]
[1744330383353,0.1254724,79753.0,79752.0,0.0627368]
[1744330383538,0.1254802,79748.0,79747.0,0.06292868]
[1744330384439,0.1254802,79748.0,79747.0,0.00936423]
[1744330384645,0.1254802,79748.0,79747.0,0.13484603]
[1744330384845,0.1254802,79748.0,79747.0,0.00936423]
[1744330385152,0.1254802,79748.0,79747.0,0.00018808]
[1744330385352,0.1254818,79747.0,79746.0,0.17167108]
[1744330385553,0.1254849,79745.0,79744.0,0.11997108]
[1744330386051,0.7362849,79745.0,79744.0,0.11997108]
[1744330386649,0.74844802,79745.0,79744.0,0.11997108]
[1744330389748,0.125496,79738.0,79737.0,0.00018808]
[1744330389952,0.486296,79738.0,79737.0,0.00018808]
[1744330390149,0.125518,79725.0,79721.0,0.0627613]
[1744330390349,0.125518,79725.0,79724.0,0.1255167]
[1744330390558,0.486318,79725.0,79724.0,0.1255167]
[1744330391348,0.125518,79725.0,79724.0,0.1255167]
[1744330392660,0.06294098,79732.0,79731.0,0.125507]
[1744330393157,0.00018808,79732.0,79731.0,0.486307]
[1744330393458,0.00018808,79732.0,79731.0,0.553607]
[1744330393654,0.00018808,79732.0,79731.0,0.0336]
[1744330393655,0.12569348,79732.0,79731.0,0.0336]
[1744330393859,0.12569348,79732.0,79731.0,0.159107]
[1744330394256,0.00018808,79732.0,79731.0,0.159107]
[1744330394457,0.12569348,79732.0,79731.0,0.159107]
[1744330394950,0.12569348,79732.0,79731.0,0.0336]
[1744330395157,0.1255148,79726.0,79725.0,0.1255159]
[1744330395457,0.1255148,79726.0,79725.0,0.1592164]
[1744330397952,0.3608,79748.0,79725.0,0.1592164]
[1744330397953,0.00018808,79732.0,79731.0,0.125507]
[1744330398649,0.00018808,79732.0,79725.0,0.44884]
[1744330398650,0.1882761,79726.0,79725.0,0.1255161]
[1744330399149,0.2204761,79726.0,79725.0,0.1255161]
[1744330399348,0.2204761,79726.0,79725.0,0.1906161]
[1744330399549,0.2204761,79726.0,79725.0,0.032]
[1744330399764,0.2525761,79726.0,79725.0,0.032]
[1744330399958,0.125518,79724.0,79723.0,0.00050173]
[1744330400659,0.189818,79724.0,79723.0,0.12602133]
[1744330400857,0.157618,79724.0,79723.0,0.12602133]
[1744330401361,0.157618,79724.0,79723.0,0.19042133]
[1744330401561,0.157618,79724.0,79723.0,0.06490173]
[1744330401763,0.157618,79724.0,79723.0,0.03180173]
[1744330401959,0.157618,79724.0,79723.0,0.00050173]
[1744330402262,0.157618,79724.0,79704.0,0.0649]
[1744330402263,0.1255479,79705.0,79704.0,0.0649]
[1744330402454,0.1255479,79705.0,79704.0,0.1904495]
[1744330402857,0.1255479,79705.0,79704.0,0.0649]
[1744330403164,0.1889479,79705.0,79704.0,0.1904495]
[1744330403368,0.1889479,79705.0,79704.0,0.19982667]
[1744330404159,0.1255455,79707.0,79706.0,0.1255463]
[1744330404955,0.1255455,79707.0,79706.0,0.1595463]
[1744330405559,0.1569455,79707.0,79706.0,0.1595463]
[1744330405770,0.1255455,79707.0,79706.0,0.1595463]
[1744330406355,0.1569455,79707.0,79706.0,0.1595463]
[1744330406556,0.1569455,79707.0,79704.0,0.0336]
[1744330406557,0.1255479,79705.0,79704.0,0.0336]
[1744330406753,0.127573,79707.0,79697.0,0.00018808]
[1744330406754,0.1255558,79700.0,79697.0,0.00018808]
[1744330406953,0.4863558,79700.0,79697.0,0.00018808]
[1744330407157,0.0627819,79695.0,79689.0,0.29724181]
[1744330407466,0.4863715,79690.0,79689.0,0.29724181]
[1744330407864,0.1255715,79690.0,79689.0,0.29724181]
[1744330408057,0.1255715,79690.0,79689.0,0.1255731]
[1744330408371,0.5491634,79691.0,79690.0,0.0627851]
[1744330408669,0.1255794,79686.0,79685.0,0.1255775]
[1744330409256,0.1255794,79686.0,79685.0,0.1594775]
[1744330409659,0.1599794,79686.0,79685.0,0.1594775]
[1744330410068,0.1255754,79688.0,79687.0,0.1255747]
[1744330410460,0.1255754,79688.0,79687.0,0.1594747]
[1744330411369,0.0627818,79695.0,79687.0,0.1594747]
[1744330411566,0.1257485,79698.0,79697.0,0.1255605]
[1744330411865,0.47326125,79708.0,79707.0,0.1255448]
[1744330411866,0.11246125,79708.0,79707.0,0.1255448]
[1744330412066,0.23800445,79708.0,79707.0,0.1255448]
[1744330414867,0.1255432,79708.0,79707.0,0.1255448]
[1744330415070,0.1255432,79708.0,79707.0,0.1586448]
[1744330415564,0.4235652,79717.0,79714.0,0.1255337]
[1744330415765,0.1257204,79715.0,79714.0,0.1255337]
[1744330416768,0.0001882,79715.0,79714.0,0.1255337]
[1744330417174,0.0631607,79722.0,79721.0,0.1255227]
[1744330419885,0.0631607,79722.0,79721.0,0.1586227]
[1744330420687,0.0631607,79722.0,79721.0,0.1907227]
[1744330421085,0.0631607,79722.0,79721.0,0.0652]
[1744330421489,0.0627762,79703.0,79693.0,0.3608]
[1744330421787,0.0627762,79703.0,79702.0,0.1255526]
[1744330422782,0.1255488,79705.0,79704.0,0.1883204]
[1744330422983,0.1257305,79709.0,79708.0,0.1255432]
[1744330424589,0.1585305,79709.0,79708.0,0.1255432]
[1744330424991,0.5193305,79709.0,79708.0,0.1255432]
[1744330425991,0.1585305,79709.0,79708.0,0.1255432]
[1744330427396,0.1915305,79709.0,79708.0,0.1255432]
[1744330427894,0.1585305,79709.0,79708.0,0.1255432]
[1744330431004,0.1255479,79705.0,79704.0,0.0663]
[1744330431297,0.1255479,79705.0,79704.0,0.0323]
[1744330431791,0.1255479,79705.0,79704.0,0.1578495]
[1744330436194,0.0001882,79709.0,79708.0,0.1255432]
[1744330437298,0.1257298,79709.0,79708.0,0.1255432]
[1744330442302,0.0001882,79709.0,79708.0,0.1255432]
[1744330443296,0.1257298,79709.0,79708.0,0.1255432]
[1744330445004,0.0627719,79708.0,79702.0,0.0352]
[1744330445201,0.4863511,79703.0,79702.0,0.1607526]
[1744330445504,0.1255511,79703.0,79702.0,0.1607526]
[1744330446097,0.1255511,79703.0,79700.0,0.0001882]
[1744330446098,0.1255542,79701.0,79700.0,0.0001882]
[1744330446701,0.1905542,79701.0,79700.0,0.0001882]
[1744330446901,0.1905542,79701.0,79700.0,0.125744]
[1744330447195,0.1255542,79701.0,79700.0,0.125744]
[1744330448606,0.1582542,79701.0,79700.0,0.125744]
[1744330449808,0.1582542,79701.0,79700.0,0.159944]
[1744330452311,0.1255542,79701.0,79700.0,0.159944]
[1744330453603,0.1255542,79701.0,79700.0,0.0001882]
[1744330457818,0.1255542,79701.0,79700.0,0.125744]
[1744330458522,0.63629503,79706.0,79705.0,0.1255479]
[1744330458723,0.63629503,79706.0,79701.0,0.0334]
[1744330458724,0.14994833,79706.0,79701.0,0.0334]
[1744330458911,0.1255526,79702.0,79701.0,0.0334]
[1744330459317,0.14994833,79703.0,79701.0,0.0334]
[1744330459518,0.1255526,79702.0,79701.0,0.0334]
[1744330461915,0.14994833,79703.0,79702.0,0.1255526]
[1744330462409,0.14994833,79703.0,79702.0,0.1564526]
[1744330462610,0.0627725,79707.0,79702.0,0.1564526]
[1744330462811,0.1255499,79704.0,79702.0,0.1564526]
[1744330463213,0.1255499,79704.0,79703.0,0.01667052]
[1744330463719,0.1255499,79704.0,79703.0,0.04887052]
[1744330466817,0.11274261,79705.0,79703.0,0.04887052]
[1744330467024,0.23829051,79705.0,79704.0,0.14222002]
[1744330467216,0.1255479,79705.0,79704.0,0.14222002]
[1744330468111,0.0001882,79709.0,79704.0,0.14222002]
[1744330468112,0.0001882,79709.0,79708.0,0.1255432]
[1744330468315,0.06153081,79710.0,79709.0,0.1255416]
[1744330468518,0.06153081,79710.0,79709.0,0.14270921]
[1744330469322,0.06153081,79710.0,79709.0,0.05086761]
[1744330469523,0.18707081,79710.0,79709.0,0.05086761]
[1744330469917,0.1255511,79703.0,79702.0,0.0332]
[1744330470118,0.1255511,79703.0,79702.0,0.05036295]
[1744330470414,0.4863511,79703.0,79702.0,0.05036295]
[1744330470724,0.4863511,79703.0,79702.0,0.0332]
[1744330470923,0.1255511,79703.0,79702.0,0.0332]
[1744330471229,0.1255511,79703.0,79702.0,0.050273]
[1744330471728,0.1255511,79703.0,79702.0,0.1758256]
[1744330471925,0.1255511,79703.0,79702.0,0.082173]
[1744330472122,0.4863511,79703.0,79702.0,0.0651]
[1744330472523,0.4863511,79703.0,79702.0,0.1906526]
[1744330472830,0.1255511,79703.0,79702.0,0.20774169]
[1744330473132,0.0627746,79705.0,79704.0,0.1255495]